[Event "Titled Tuesday Blitz June 13 Late 2023"]
[White "Bordi, Kevin"]
[Black "Babazada, Khazar"]
[WhiteFideId "621862"]
[BlackFideId "13413554"]
[WhiteElo "2745"]
[BlackElo "2369"]
[Result "0-1"]
[Round "8"]
[TimeControl "180+2"]
[Date "2023.06.13"]
[WhiteClock "0:00:26"]
[BlackClock "0:00:28"]
[Board "19"]

1. d4 {[%clk 0:03:00]}  Nf6 {[%clk 0:02:57]} 2. Bg5 {[%clk 0:03:01]}  c5 {[%clk 0:02:56]} 3. Bxf6 {[%clk 0:03:01]}  gxf6 {[%clk 0:02:52]} 4. d5 {[%clk 0:03:01]}  f5 {[%clk 0:02:53]} 5. c4 {[%clk 0:03:02]}  Bg7 {[%clk 0:02:53]} 6. Nc3 {[%clk 0:03:02]}  d6 {[%clk 0:02:53]} 7. e3 {[%clk 0:03:01]}  a6 {[%clk 0:02:52]} 8. Bd3 {[%clk 0:03:02]}  e6 {[%clk 0:02:46]} 9. Nge2 {[%clk 0:03:01]}  Nd7 {[%clk 0:02:44]} 10. f4 {[%clk 0:02:58]}  h5 {[%clk 0:02:39]} 11. O-O {[%clk 0:02:50]}  h4 {[%clk 0:02:39]} 12. e4 {[%clk 0:02:49]}  fxe4 {[%clk 0:02:14]} 13. Nxe4 {[%clk 0:02:46]}  Nf6 {[%clk 0:02:14]} 14. N2c3 {[%clk 0:02:41]}  exd5 {[%clk 0:01:58]} 15. Nxf6+ {[%clk 0:02:39]}  Bxf6 {[%clk 0:01:56]} 16. Nxd5 {[%clk 0:02:40]}  Bd4+ {[%clk 0:01:56]} 17. Kh1 {[%clk 0:02:40]}  Be6 {[%clk 0:01:53]} 18. Qf3 {[%clk 0:02:34]}  Kf8 {[%clk 0:01:42]} 19. f5 {[%clk 0:02:23]}  Bxd5 {[%clk 0:01:39]} 20. Qxd5 {[%clk 0:02:24]}  Rh6 {[%clk 0:01:36]} 21. f6 {[%clk 0:02:19]}  Bxf6 {[%clk 0:01:29]} 22. Rf3 {[%clk 0:02:16]}  Qe7 {[%clk 0:01:03]} 23. Raf1 {[%clk 0:02:15]}  Re8 {[%clk 0:00:59]} 24. Qf5 {[%clk 0:02:01]}  Kg7 {[%clk 0:00:52]} 25. Rf4 {[%clk 0:01:48]}  Qe6 {[%clk 0:00:49]} 26. Rg4+ {[%clk 0:01:36]}  Kh8 {[%clk 0:00:49]} 27. Qf3 {[%clk 0:01:26]}  Qe3 {[%clk 0:00:45]} 28. Qd5 {[%clk 0:01:18]}  Re7 {[%clk 0:00:37]} 29. Qf5 {[%clk 0:01:06]}  Qe6 {[%clk 0:00:35]} 30. Qf3 {[%clk 0:01:01]}  Bxb2 {[%clk 0:00:34]} 31. Be4 {[%clk 0:00:49]}  Bg7 {[%clk 0:00:31]} 32. Bxb7 {[%clk 0:00:40]}  Rf6 {[%clk 0:00:30]} 33. Rxh4+ {[%clk 0:00:33]}  Kg8 {[%clk 0:00:28]} 34. Qd1 {[%clk 0:00:26]} 0-1


[Site "https://www.chess.com"]

[Event "Titled Tuesday Blitz June 13 Late 2023"]
[White "Katz, Alexander"]
[Black "Mekhitarian, Krikor Sevag"]
[WhiteFideId "2039796"]
[BlackFideId "2107660"]
[WhiteElo "2389"]
[BlackElo "2604"]
[Result "0-1"]
[Round "8"]
[TimeControl "180+2"]
[Date "2023.06.13"]
[WhiteClock "0:00:06"]
[BlackClock "0:00:16"]
[Board "23"]

1. e4 {[%clk 0:02:49]}  e6 {[%clk 0:02:59]} 2. d4 {[%clk 0:02:49]}  d5 {[%clk 0:03:00]} 3. Nc3 {[%clk 0:02:49]}  Nf6 {[%clk 0:03:00]} 4. Bg5 {[%clk 0:02:47]}  dxe4 {[%clk 0:03:00]} 5. Nxe4 {[%clk 0:02:48]}  Be7 {[%clk 0:03:00]} 6. Bxf6 {[%clk 0:02:49]}  gxf6 {[%clk 0:03:00]} 7. Qd3 {[%clk 0:02:49]}  f5 {[%clk 0:02:55]} 8. Nc3 {[%clk 0:02:49]}  c6 {[%clk 0:02:43]} 9. O-O-O {[%clk 0:02:47]}  Nd7 {[%clk 0:02:44]} 10. h3 {[%clk 0:02:47]}  Nf6 {[%clk 0:02:43]} 11. Be2 {[%clk 0:02:43]}  Nd5 {[%clk 0:02:42]} 12. Nxd5 {[%clk 0:02:41]}  Qxd5 {[%clk 0:02:42]} 13. c4 {[%clk 0:02:17]}  Qxg2 {[%clk 0:02:39]} 14. Bf3 {[%clk 0:02:15]}  Qxf2 {[%clk 0:02:37]} 15. Kb1 {[%clk 0:02:04]}  Rg8 {[%clk 0:02:17]} 16. Ne2 {[%clk 0:01:46]}  Bf6 {[%clk 0:02:05]} 17. d5 {[%clk 0:01:09]}  Qb6 {[%clk 0:01:37]} 18. Nc3 {[%clk 0:01:09]}  Bd7 {[%clk 0:01:27]} 19. dxe6 {[%clk 0:00:48]}  Bxe6 {[%clk 0:01:27]} 20. Rhe1 {[%clk 0:00:49]}  Rd8 {[%clk 0:01:16]} 21. Qxf5 {[%clk 0:00:46]}  Rxd1+ {[%clk 0:01:03]} 22. Nxd1 {[%clk 0:00:36]}  Ke7 {[%clk 0:00:37]} 23. Qxh7 {[%clk 0:00:32]}  Rg1 {[%clk 0:00:29]} 24. Qe4 {[%clk 0:00:12]}  Rxe1 {[%clk 0:00:25]} 25. Qxe1 {[%clk 0:00:13]}  Qd4 {[%clk 0:00:24]} 26. Bg4 {[%clk 0:00:08]}  Qd3+ {[%clk 0:00:16]} 27. Ka1 {[%clk 0:00:06]}  Qxc4 {[%clk 0:00:17]} 28. Bxe6 {[%clk 0:00:06]}  Qc1# {[%clk 0:00:16]} 0-1


[Site "https://www.chess.com"]

[Event "Titled Tuesday Blitz June 13 Late 2023"]
[White "Jumabayev, Rinat"]
[Black "Kucuksari, Kaan"]
[WhiteFideId "13702661"]
[BlackFideId "6380166"]
[WhiteElo "2561"]
[BlackElo "2364"]
[Result "1-0"]
[Round "8"]
[TimeControl "180+2"]
[Date "2023.06.13"]
[WhiteClock "0:00:26"]
[BlackClock "0:00:00"]
[Board "24"]

1. e3 {[%clk 0:03:00]}  d5 {[%clk 0:02:57]} 2. Nf3 {[%clk 0:02:59]}  Nf6 {[%clk 0:02:56]} 3. c4 {[%clk 0:02:59]}  c6 {[%clk 0:02:56]} 4. b3 {[%clk 0:02:57]}  Nbd7 {[%clk 0:02:46]} 5. Bb2 {[%clk 0:02:58]}  e6 {[%clk 0:02:46]} 6. Nc3 {[%clk 0:02:53]}  Bd6 {[%clk 0:02:44]} 7. Qc2 {[%clk 0:02:52]}  O-O {[%clk 0:02:37]} 8. d4 {[%clk 0:02:49]}  b6 {[%clk 0:02:35]} 9. Bd3 {[%clk 0:02:48]}  Bb7 {[%clk 0:02:34]} 10. O-O {[%clk 0:02:48]}  Qe7 {[%clk 0:02:24]} 11. Rad1 {[%clk 0:02:45]}  Rad8 {[%clk 0:02:14]} 12. Rfe1 {[%clk 0:02:44]}  Rfe8 {[%clk 0:02:12]} 13. e4 {[%clk 0:02:40]}  dxe4 {[%clk 0:02:12]} 14. Nxe4 {[%clk 0:02:41]}  Nxe4 {[%clk 0:02:13]} 15. Bxe4 {[%clk 0:02:40]}  Nf6 {[%clk 0:02:12]} 16. Bd3 {[%clk 0:02:40]}  Bb4 {[%clk 0:02:09]} 17. Re3 {[%clk 0:02:37]}  Ba3 {[%clk 0:02:00]} 18. Ba1 {[%clk 0:02:27]}  Bd6 {[%clk 0:01:59]} 19. Ne5 {[%clk 0:02:25]}  h6 {[%clk 0:01:33]} 20. Rde1 {[%clk 0:02:23]}  Bb4 {[%clk 0:01:21]} 21. R1e2 {[%clk 0:02:19]}  Qc7 {[%clk 0:01:14]} 22. Rg3 {[%clk 0:02:13]}  Nh5 {[%clk 0:01:13]} 23. Rg4 {[%clk 0:02:08]}  f5 {[%clk 0:01:00]} 24. Rh4 {[%clk 0:02:05]}  Nf6 {[%clk 0:01:00]} 25. Bb2 {[%clk 0:01:53]}  Be7 {[%clk 0:00:55]} 26. Ng6 {[%clk 0:01:52]}  Bd6 {[%clk 0:00:53]} 27. d5 {[%clk 0:01:12]}  Qf7 {[%clk 0:00:40]} 28. Ne5 {[%clk 0:01:04]}  Bxe5 {[%clk 0:00:39]} 29. dxe6 {[%clk 0:00:57]}  Rxe6 {[%clk 0:00:32]} 30. Rxe5 {[%clk 0:00:57]}  Rxe5 {[%clk 0:00:27]} 31. Bxe5 {[%clk 0:00:58]}  Re8 {[%clk 0:00:13]} 32. Bc3 {[%clk 0:00:55]}  Ne4 {[%clk 0:00:07]} 33. Bxe4 {[%clk 0:00:50]}  fxe4 {[%clk 0:00:07]} 34. Rg4 {[%clk 0:00:50]}  g6 {[%clk 0:00:05]} 35. Rxe4 {[%clk 0:00:45]}  c5 {[%clk 0:00:05]} 36. Rxe8+ {[%clk 0:00:44]}  Qxe8 {[%clk 0:00:06]} 37. Qd2 {[%clk 0:00:41]}  Kh7 {[%clk 0:00:05]} 38. f3 {[%clk 0:00:40]}  Qe7 {[%clk 0:00:05]} 39. Kf1 {[%clk 0:00:36]}  Bc6 {[%clk 0:00:05]} 40. Qf4 {[%clk 0:00:35]}  Bd7 {[%clk 0:00:04]} 41. Qb8 {[%clk 0:00:33]}  Be8 {[%clk 0:00:04]} 42. h3 {[%clk 0:00:27]}  h5 {[%clk 0:00:03]} 43. h4 {[%clk 0:00:25]}  Qd7 {[%clk 0:00:03]} 44. Qe5 {[%clk 0:00:25]}  Qd3+ {[%clk 0:00:01]} 45. Kf2 {[%clk 0:00:26]}  Qc2+ {[%clk 0:00:00]} 46. Kg3 {[%clk 0:00:26]} 1-0


[Site "https://www.chess.com"]

[Event "Titled Tuesday Blitz June 13 Late 2023"]
[White "Sieciechowicz, Marcin"]
[Black "Maksimovic, Bojan"]
[WhiteFideId "1130170"]
[BlackFideId "14408120"]
[WhiteElo "2301"]
[BlackElo "2457"]
[Result "0-1"]
[Round "8"]
[TimeControl "180+2"]
[Date "2023.06.13"]
[WhiteClock "0:00:00"]
[BlackClock "0:01:29"]
[Board "25"]

1. d4 {[%clk 0:03:00]}  Nf6 {[%clk 0:03:00]} 2. Bf4 {[%clk 0:03:01]}  Nh5 {[%clk 0:02:58]} 3. Bg3 {[%clk 0:02:59]}  d6 {[%clk 0:02:55]} 4. e4 {[%clk 0:02:58]}  g6 {[%clk 0:02:53]} 5. Be2 {[%clk 0:02:57]}  Nxg3 {[%clk 0:02:53]} 6. hxg3 {[%clk 0:02:58]}  Bg7 {[%clk 0:02:53]} 7. Nf3 {[%clk 0:02:59]}  c5 {[%clk 0:02:52]} 8. c3 {[%clk 0:02:57]}  cxd4 {[%clk 0:02:50]} 9. Nxd4 {[%clk 0:02:58]}  Nc6 {[%clk 0:02:47]} 10. Nf3 {[%clk 0:02:47]}  Qb6 {[%clk 0:02:42]} 11. Qb3 {[%clk 0:02:45]}  Be6 {[%clk 0:02:38]} 12. Qxb6 {[%clk 0:02:44]}  axb6 {[%clk 0:02:39]} 13. a3 {[%clk 0:02:36]}  Nb4 {[%clk 0:02:33]} 14. Kd2 {[%clk 0:02:16]}  Na6 {[%clk 0:02:32]} 15. Kc2 {[%clk 0:02:09]}  Nc5 {[%clk 0:02:32]} 16. Nbd2 {[%clk 0:02:10]}  h6 {[%clk 0:02:26]} 17. Nd4 {[%clk 0:02:00]}  Bc8 {[%clk 0:02:00]} 18. Nc4 {[%clk 0:01:42]}  Nxe4 {[%clk 0:01:54]} 19. Nxb6 {[%clk 0:01:40]}  Rb8 {[%clk 0:01:52]} 20. Bb5+ {[%clk 0:01:25]}  Kf8 {[%clk 0:01:50]} 21. Rhf1 {[%clk 0:01:16]}  h5 {[%clk 0:01:48]} 22. Rae1 {[%clk 0:01:12]}  Bxd4 {[%clk 0:01:44]} 23. Nxc8 {[%clk 0:00:56]}  Nxg3 {[%clk 0:01:29]} 24. fxg3 {[%clk 0:00:35]}  Rxc8 {[%clk 0:01:29]} 25. Bd7 {[%clk 0:00:35]}  Rc7 {[%clk 0:01:28]} 26. Be6 {[%clk 0:00:35]}  Bf6 {[%clk 0:01:28]} 27. Bd5 {[%clk 0:00:35]}  Kg7 {[%clk 0:01:29]} 28. a4 {[%clk 0:00:32]}  Ra8 {[%clk 0:01:29]} 29. Ra1 {[%clk 0:00:30]}  Ra5 {[%clk 0:01:30]} 30. Bb3 {[%clk 0:00:28]}  Rg5 {[%clk 0:01:30]} 31. Rf3 {[%clk 0:00:26]}  d5 {[%clk 0:01:31]} 32. Kd3 {[%clk 0:00:14]}  e6 {[%clk 0:01:31]} 33. a5 {[%clk 0:00:13]}  Be5 {[%clk 0:01:32]} 34. a6 {[%clk 0:00:12]}  bxa6 {[%clk 0:01:33]} 35. Rxa6 {[%clk 0:00:12]}  Rb7 {[%clk 0:01:32]} 36. Kc2 {[%clk 0:00:11]}  Bxg3 {[%clk 0:01:31]} 37. Ba4 {[%clk 0:00:10]}  Bh4 {[%clk 0:01:31]} 38. Bc6 {[%clk 0:00:09]}  Rxg2+ {[%clk 0:01:31]} 39. Kd3 {[%clk 0:00:10]}  Rbxb2 {[%clk 0:01:29]} 40. Ra7 {[%clk 0:00:00]}  Rbd2+ {[%clk 0:01:29]} 0-1


[Site "https://www.chess.com"]

[Event "Titled Tuesday Blitz June 13 Late 2023"]
[White "Martinez Ramirez, Lennis"]
[Black "Kramnik, Vladimir"]
[WhiteFideId "3509079"]
[BlackFideId "4101588"]
[WhiteElo "2410"]
[BlackElo "2703"]
[Result "0-1"]
[Round "8"]
[TimeControl "180+2"]
[Date "2023.06.13"]
[WhiteClock "0:00:17"]
[BlackClock "0:00:52"]
[Board "32"]

1. Nf3 {[%clk 0:03:00]}  Nf6 {[%clk 0:02:58]} 2. c4 {[%clk 0:02:59]}  c6 {[%clk 0:02:58]} 3. e3 {[%clk 0:02:54]}  d5 {[%clk 0:02:56]} 4. b3 {[%clk 0:02:54]}  Bg4 {[%clk 0:02:55]} 5. Bb2 {[%clk 0:02:53]}  Nbd7 {[%clk 0:02:55]} 6. Be2 {[%clk 0:02:54]}  e6 {[%clk 0:02:55]} 7. h3 {[%clk 0:02:54]}  Bh5 {[%clk 0:02:54]} 8. d3 {[%clk 0:02:52]}  Bd6 {[%clk 0:02:52]} 9. Nbd2 {[%clk 0:02:40]}  h6 {[%clk 0:02:49]} 10. Qc2 {[%clk 0:02:39]}  Qe7 {[%clk 0:02:47]} 11. a3 {[%clk 0:02:37]}  a5 {[%clk 0:02:42]} 12. e4 {[%clk 0:02:28]}  dxe4 {[%clk 0:02:39]} 13. dxe4 {[%clk 0:02:21]}  e5 {[%clk 0:02:36]} 14. Nh4 {[%clk 0:02:15]}  Bg6 {[%clk 0:02:27]} 15. Nxg6 {[%clk 0:02:11]}  fxg6 {[%clk 0:02:26]} 16. O-O {[%clk 0:02:07]}  O-O {[%clk 0:02:25]} 17. g3 {[%clk 0:01:20]}  Kh7 {[%clk 0:02:06]} 18. Kg2 {[%clk 0:01:20]}  Bc5 {[%clk 0:02:00]} 19. f4 {[%clk 0:00:37]}  Rae8 {[%clk 0:01:51]} 20. f5 {[%clk 0:00:37]}  gxf5 {[%clk 0:01:38]} 21. Rxf5 {[%clk 0:00:38]}  g6 {[%clk 0:01:32]} 22. Rf3 {[%clk 0:00:38]}  Bd4 {[%clk 0:01:29]} 23. Raf1 {[%clk 0:00:33]}  Kg7 {[%clk 0:01:23]} 24. b4 {[%clk 0:00:23]}  axb4 {[%clk 0:01:21]} 25. axb4 {[%clk 0:00:24]}  c5 {[%clk 0:01:14]} 26. b5 {[%clk 0:00:20]}  Nh7 {[%clk 0:01:11]} 27. Nb1 {[%clk 0:00:20]}  Rxf3 {[%clk 0:01:08]} 28. Bxf3 {[%clk 0:00:20]}  Ndf6 {[%clk 0:01:00]} 29. Nc3 {[%clk 0:00:20]}  Qe6 {[%clk 0:00:54]} 30. Nd5 {[%clk 0:00:19]}  Ng5 {[%clk 0:00:53]} 31. Nc7 {[%clk 0:00:17]}  Qxh3# {[%clk 0:00:52]} 0-1


[Site "https://www.chess.com"]

[Event "Titled Tuesday Blitz June 13 Late 2023"]
[White "Kosakowski, Jakub"]
[Black "Skvortsov, Andrei"]
[WhiteFideId "1185080"]
[BlackFideId "24108600"]
[WhiteElo "2488"]
[BlackElo "2259"]
[Result "1-0"]
[Round "8"]
[TimeControl "180+2"]
[Date "2023.06.13"]
[WhiteClock "0:00:40"]
[BlackClock "0:00:03"]
[Board "34"]

1. d4 {[%clk 0:02:39]}  e6 {[%clk 0:02:58]} 2. e4 {[%clk 0:02:38]}  d5 {[%clk 0:02:58]} 3. Bd3 {[%clk 0:02:36]}  dxe4 {[%clk 0:02:56]} 4. Bxe4 {[%clk 0:02:37]}  c5 {[%clk 0:02:56]} 5. Ne2 {[%clk 0:02:35]}  Nf6 {[%clk 0:02:52]} 6. Bf3 {[%clk 0:02:36]}  Nc6 {[%clk 0:02:48]} 7. Be3 {[%clk 0:02:35]}  cxd4 {[%clk 0:02:45]} 8. Nxd4 {[%clk 0:02:36]}  Ne5 {[%clk 0:02:38]} 9. Nc3 {[%clk 0:02:36]}  Nc4 {[%clk 0:02:30]} 10. Qe2 {[%clk 0:02:35]}  Nxe3 {[%clk 0:02:28]} 11. Qxe3 {[%clk 0:02:35]}  Bc5 {[%clk 0:02:28]} 12. O-O-O {[%clk 0:02:35]}  O-O {[%clk 0:02:21]} 13. Qe5 {[%clk 0:02:08]}  Nd7 {[%clk 0:02:01]} 14. Qe2 {[%clk 0:02:07]}  Qg5+ {[%clk 0:01:53]} 15. Kb1 {[%clk 0:02:07]}  Qe5 {[%clk 0:01:47]} 16. Qd2 {[%clk 0:01:45]}  a6 {[%clk 0:01:43]} 17. Nb3 {[%clk 0:01:37]}  Bb4 {[%clk 0:01:41]} 18. Rhe1 {[%clk 0:01:36]}  Qf6 {[%clk 0:01:30]} 19. Ne4 {[%clk 0:01:26]}  Bxd2 {[%clk 0:01:23]} 20. Nxf6+ {[%clk 0:01:26]}  gxf6 {[%clk 0:01:22]} 21. Rxd2 {[%clk 0:01:27]}  Ne5 {[%clk 0:01:19]} 22. Be4 {[%clk 0:01:24]}  Rb8 {[%clk 0:01:14]} 23. f4 {[%clk 0:01:21]}  Nc4 {[%clk 0:01:13]} 24. Rd4 {[%clk 0:01:19]}  b5 {[%clk 0:01:13]} 25. Bd3 {[%clk 0:01:16]}  e5 {[%clk 0:01:11]} 26. fxe5 {[%clk 0:01:15]}  fxe5 {[%clk 0:01:11]} 27. Rh4 {[%clk 0:01:15]}  f5 {[%clk 0:00:47]} 28. Bxc4+ {[%clk 0:01:14]}  bxc4 {[%clk 0:00:48]} 29. Rxc4 {[%clk 0:01:15]}  e4 {[%clk 0:00:47]} 30. Nd4 {[%clk 0:01:10]}  Bd7 {[%clk 0:00:43]} 31. g3 {[%clk 0:01:08]}  Rb7 {[%clk 0:00:39]} 32. Rc5 {[%clk 0:01:07]}  Kg7 {[%clk 0:00:35]} 33. c3 {[%clk 0:01:04]}  Rf6 {[%clk 0:00:34]} 34. Re5 {[%clk 0:01:00]}  Kg6 {[%clk 0:00:34]} 35. Ne2 {[%clk 0:00:58]}  Rb5 {[%clk 0:00:30]} 36. Nf4+ {[%clk 0:00:56]}  Kf7 {[%clk 0:00:29]} 37. Rxb5 {[%clk 0:00:54]}  Bxb5 {[%clk 0:00:28]} 38. Kc2 {[%clk 0:00:54]}  Rh6 {[%clk 0:00:25]} 39. h3 {[%clk 0:00:52]}  Rb6 {[%clk 0:00:20]} 40. b3 {[%clk 0:00:51]}  Rd6 {[%clk 0:00:16]} 41. Rd1 {[%clk 0:00:51]}  Rb6 {[%clk 0:00:13]} 42. Rd5 {[%clk 0:00:49]}  Kf6 {[%clk 0:00:12]} 43. Kd2 {[%clk 0:00:46]}  Rb7 {[%clk 0:00:12]} 44. Ke3 {[%clk 0:00:45]}  Rc7 {[%clk 0:00:10]} 45. Rxb5 {[%clk 0:00:41]}  Rxc3+ {[%clk 0:00:08]} 46. Kd4 {[%clk 0:00:41]}  Rxg3 {[%clk 0:00:04]} 47. Nh5+ {[%clk 0:00:41]}  Kg5 {[%clk 0:00:04]} 48. Rxf5+ {[%clk 0:00:40]}  Kxf5 {[%clk 0:00:03]} 49. Nxg3+ {[%clk 0:00:40]} 1-0


[Site "https://www.chess.com"]

[Event "Titled Tuesday Blitz June 13 Late 2023"]
[White "Gomez Ledo, Roberto Carlos"]
[Black "Goltsev, Dmitry"]
[WhiteFideId "3507076"]
[BlackFideId "24176710"]
[WhiteElo "2378"]
[BlackElo "2356"]
[Result "1/2-1/2"]
[Round "8"]
[TimeControl "180+2"]
[Date "2023.06.13"]
[WhiteClock "0:00:56"]
[BlackClock "0:00:11"]
[Board "36"]

1. d4 {[%clk 0:02:51]}  Nf6 {[%clk 0:03:00]} 2. Bf4 {[%clk 0:02:50]}  e6 {[%clk 0:03:00]} 3. e3 {[%clk 0:02:49]}  b6 {[%clk 0:03:00]} 4. Qf3 {[%clk 0:02:47]}  Nc6 {[%clk 0:03:00]} 5. Nc3 {[%clk 0:02:47]}  Bb7 {[%clk 0:03:00]} 6. Nge2 {[%clk 0:02:46]}  Rb8 {[%clk 0:02:49]} 7. e4 {[%clk 0:02:42]}  d5 {[%clk 0:02:47]} 8. exd5 {[%clk 0:02:25]}  Nb4 {[%clk 0:02:44]} 9. O-O-O {[%clk 0:02:17]}  Nfxd5 {[%clk 0:02:42]} 10. Qg3 {[%clk 0:02:07]}  Qf6 {[%clk 0:02:25]} 11. Be5 {[%clk 0:01:59]}  Qf5 {[%clk 0:02:22]} 12. Rd2 {[%clk 0:01:57]}  f6 {[%clk 0:02:17]} 13. Bxc7 {[%clk 0:01:53]}  Rc8 {[%clk 0:02:17]} 14. Bd6 {[%clk 0:01:53]}  Kf7 {[%clk 0:01:49]} 15. a3 {[%clk 0:01:46]}  Bxd6 {[%clk 0:01:30]} 16. Qxd6 {[%clk 0:01:47]}  Rhd8 {[%clk 0:01:30]} 17. Qg3 {[%clk 0:01:46]}  Nc6 {[%clk 0:01:20]} 18. Nb5 {[%clk 0:01:34]}  Na5 {[%clk 0:01:03]} 19. Nec3 {[%clk 0:01:24]}  Nxc3 {[%clk 0:01:00]} 20. Nxc3 {[%clk 0:01:22]}  Be4 {[%clk 0:00:49]} 21. Ba6 {[%clk 0:01:08]}  Bxc2 {[%clk 0:00:35]} 22. Rxc2 {[%clk 0:01:03]}  Nb3+ {[%clk 0:00:35]} 23. Kb1 {[%clk 0:01:03]}  Nd2+ {[%clk 0:00:31]} 24. Kc1 {[%clk 0:00:56]}  Nb3+ {[%clk 0:00:30]} 25. Kb1 {[%clk 0:00:56]}  Nd2+ {[%clk 0:00:15]} 26. Kc1 {[%clk 0:00:56]}  Nb3+ {[%clk 0:00:11]} 1/2-1/2


[Site "https://www.chess.com"]

[Event "Titled Tuesday Blitz June 13 Late 2023"]
[White "Kavutskiy, Konstantin"]
[Black "Yanchenko, Roman"]
[WhiteFideId "2026384"]
[BlackFideId "4137329"]
[WhiteElo "2323"]
[BlackElo "2491"]
[Result "0-1"]
[Round "8"]
[TimeControl "180+2"]
[Date "2023.06.13"]
[WhiteClock "0:00:25"]
[BlackClock "0:00:59"]
[Board "39"]

1. d4 {[%clk 0:03:00]}  d5 {[%clk 0:03:00]} 2. c4 {[%clk 0:02:59]}  c6 {[%clk 0:03:00]} 3. Nf3 {[%clk 0:02:59]}  Nf6 {[%clk 0:02:56]} 4. e3 {[%clk 0:02:57]}  a6 {[%clk 0:02:56]} 5. Nbd2 {[%clk 0:02:54]}  Bf5 {[%clk 0:02:56]} 6. Nh4 {[%clk 0:02:53]}  Bg4 {[%clk 0:02:53]} 7. Qb3 {[%clk 0:02:49]}  Ra7 {[%clk 0:02:42]} 8. h3 {[%clk 0:02:47]}  Bc8 {[%clk 0:02:38]} 9. Bd3 {[%clk 0:02:41]}  e6 {[%clk 0:02:37]} 10. c5 {[%clk 0:02:13]}  e5 {[%clk 0:02:37]} 11. dxe5 {[%clk 0:01:59]}  Nfd7 {[%clk 0:02:37]} 12. Nhf3 {[%clk 0:01:46]}  Nxc5 {[%clk 0:02:37]} 13. Qc2 {[%clk 0:01:46]}  Nxd3+ {[%clk 0:02:37]} 14. Qxd3 {[%clk 0:01:47]}  Be6 {[%clk 0:02:32]} 15. Nd4 {[%clk 0:01:45]}  c5 {[%clk 0:02:28]} 16. Nxe6 {[%clk 0:01:42]}  fxe6 {[%clk 0:02:29]} 17. e4 {[%clk 0:01:39]}  Nc6 {[%clk 0:02:20]} 18. O-O {[%clk 0:01:29]}  b5 {[%clk 0:02:13]} 19. exd5 {[%clk 0:01:23]}  Qxd5 {[%clk 0:02:13]} 20. Qe2 {[%clk 0:01:10]}  Nd4 {[%clk 0:02:02]} 21. Qh5+ {[%clk 0:01:08]}  g6 {[%clk 0:02:01]} 22. Qh4 {[%clk 0:01:02]}  Be7 {[%clk 0:01:57]} 23. Qh6 {[%clk 0:01:01]}  Qxe5 {[%clk 0:01:55]} 24. Nb3 {[%clk 0:00:55]}  Ne2+ {[%clk 0:01:23]} 25. Kh1 {[%clk 0:00:55]}  Bd6 {[%clk 0:01:23]} 26. g3 {[%clk 0:00:52]}  Rf7 {[%clk 0:01:10]} 27. Qe3 {[%clk 0:00:42]}  Nxg3+ {[%clk 0:01:05]} 28. fxg3 {[%clk 0:00:36]}  Rxf1+ {[%clk 0:01:05]} 29. Kg2 {[%clk 0:00:37]}  Qxe3 {[%clk 0:01:04]} 30. Bxe3 {[%clk 0:00:37]}  Rxa1 {[%clk 0:01:05]} 31. Nxa1 {[%clk 0:00:38]}  Kd7 {[%clk 0:01:03]} 32. Nb3 {[%clk 0:00:35]}  Kc6 {[%clk 0:01:03]} 33. g4 {[%clk 0:00:34]}  Rf8 {[%clk 0:01:02]} 34. Nd2 {[%clk 0:00:34]}  Kd5 {[%clk 0:01:02]} 35. h4 {[%clk 0:00:25]}  c4 {[%clk 0:00:59]} 0-1


[Site "https://www.chess.com"]

[Event "Titled Tuesday Blitz June 13 Late 2023"]
[White "D`Arruda, Ricardo D."]
[Black "Tanenbaum, Zachary"]
[WhiteFideId "100692"]
[BlackFideId "2060850"]
[WhiteElo "2541"]
[BlackElo "2207"]
[Result "0-1"]
[Round "8"]
[TimeControl "180+2"]
[Date "2023.06.13"]
[WhiteClock "0:01:25"]
[BlackClock "0:00:27"]
[Board "43"]

1. Nf3 {[%clk 0:02:56]}  d5 {[%clk 0:02:59]} 2. d4 {[%clk 0:02:55]}  Nf6 {[%clk 0:02:59]} 3. c4 {[%clk 0:02:55]}  dxc4 {[%clk 0:03:00]} 4. e3 {[%clk 0:02:54]}  Bg4 {[%clk 0:03:00]} 5. Bxc4 {[%clk 0:02:53]}  e6 {[%clk 0:03:01]} 6. Qb3 {[%clk 0:02:50]}  Bxf3 {[%clk 0:03:00]} 7. gxf3 {[%clk 0:02:50]}  Nbd7 {[%clk 0:03:01]} 8. Nc3 {[%clk 0:02:50]}  Nb6 {[%clk 0:02:56]} 9. Be2 {[%clk 0:02:46]}  Be7 {[%clk 0:02:56]} 10. f4 {[%clk 0:02:45]}  O-O {[%clk 0:02:52]} 11. Bf3 {[%clk 0:02:45]}  c5 {[%clk 0:02:52]} 12. dxc5 {[%clk 0:02:43]}  Nbd7 {[%clk 0:02:52]} 13. O-O {[%clk 0:02:41]}  Nxc5 {[%clk 0:02:51]} 14. Qc2 {[%clk 0:02:41]}  Rc8 {[%clk 0:02:43]} 15. Rd1 {[%clk 0:02:39]}  Qc7 {[%clk 0:02:36]} 16. Bd2 {[%clk 0:02:29]}  a6 {[%clk 0:02:35]} 17. Rac1 {[%clk 0:02:29]}  Rfd8 {[%clk 0:02:28]} 18. Be1 {[%clk 0:02:28]}  Qb6 {[%clk 0:01:55]} 19. b3 {[%clk 0:02:18]}  Nfd7 {[%clk 0:01:50]} 20. f5 {[%clk 0:02:13]}  Bf6 {[%clk 0:01:35]} 21. fxe6 {[%clk 0:02:09]}  Nxe6 {[%clk 0:01:19]} 22. Qf5 {[%clk 0:02:06]}  Ne5 {[%clk 0:01:13]} 23. Nd5 {[%clk 0:01:58]}  Rxc1 {[%clk 0:00:49]} 24. Nxb6 {[%clk 0:01:43]}  Nxf3+ {[%clk 0:00:48]} 25. Qxf3 {[%clk 0:01:42]}  Rdxd1 {[%clk 0:00:47]} 26. Qxb7 {[%clk 0:01:39]}  Rxe1+ {[%clk 0:00:47]} 27. Kg2 {[%clk 0:01:40]}  g6 {[%clk 0:00:36]} 28. Nd5 {[%clk 0:01:37]}  Be5 {[%clk 0:00:30]} 29. Qxa6 {[%clk 0:01:35]}  Ng5 {[%clk 0:00:28]} 30. f4 {[%clk 0:01:31]}  Rc2+ {[%clk 0:00:26]} 31. Kg3 {[%clk 0:01:28]}  Rg1+ {[%clk 0:00:26]} 32. Kh4 {[%clk 0:01:25]}  Rxh2# {[%clk 0:00:27]} 0-1


[Site "https://www.chess.com"]